[Event "*** Titled Tuesday Blitz"]
[Site "Chess.com"]
[Date "2020.02.04"]
[Round "3"]
[White "SF-96"]
[Black "Andro2"]
[Result "0-1"]
[WhiteElo "2605"]
[BlackElo "2438"]
[TimeControl "180+2"]
[EndTime "13:41:26 PST"]
[Termination "Andro2 won by resignation"]

1. b3 {[%clk 0:03:00.9]} 1... d5 {[%clk 0:02:59.9]} 2. Bb2 {[%clk 0:03:02.1]}
2... Bg4 {[%clk 0:03:01.4]} 3. f3 {[%clk 0:03:03]} 3... Bf5 {[%clk 0:03:02]} 4.
e3 {[%clk 0:03:04.1]} 4... Nd7 {[%clk 0:03:02]} 5. d4 {[%clk 0:02:57.5]} 5... e6
{[%clk 0:03:02.2]} 6. Nc3 {[%clk 0:02:48.6]} 6... Ngf6 {[%clk 0:02:58.4]} 7. Bd3
{[%clk 0:02:30.7]} 7... Bg6 {[%clk 0:02:54.3]} 8. Nge2 {[%clk 0:02:31.5]} 8...
Bd6 {[%clk 0:02:47]} 9. Qd2 {[%clk 0:02:27.4]} 9... Qe7 {[%clk 0:02:40.2]} 10.
Nb5 {[%clk 0:02:19.4]} 10... O-O {[%clk 0:02:23.8]} 11. Nxd6 {[%clk 0:02:17.2]}
11... Qxd6 {[%clk 0:02:24]} 12. O-O {[%clk 0:02:13.6]} 12... Rfe8 {[%clk
0:02:20]} 13. Nf4 {[%clk 0:02:07.4]} 13... e5 {[%clk 0:02:09.6]} 14. dxe5 {[%clk
0:01:34]} 14... Nxe5 {[%clk 0:02:09.7]} 15. Be2 {[%clk 0:01:35.3]} 15... Rad8
{[%clk 0:01:58.8]} 16. Rad1 {[%clk 0:01:34.7]} 16... Qb6 {[%clk 0:01:43.6]} 17.
c4 {[%clk 0:01:10.2]} 17... c6 {[%clk 0:01:36.4]} 18. cxd5 {[%clk 0:00:48.1]}
18... Nxd5 {[%clk 0:01:17.7]} 19. Nxd5 {[%clk 0:00:49.1]} 19... Rxd5 {[%clk
0:01:16.7]} 20. Qc3 {[%clk 0:00:50.4]} 20... Rxd1 {[%clk 0:01:04]} 21. Rxd1
{[%clk 0:00:51.2]} 21... f6 {[%clk 0:01:04]} 22. Kf2 {[%clk 0:00:40.8]} 22...
Bf7 {[%clk 0:01:00.4]} 23. f4 {[%clk 0:00:32.2]} 23... Ng6 {[%clk 0:01:00.5]}
24. g3 {[%clk 0:00:22.5]} 24... Ne7 {[%clk 0:00:57.5]} 25. Bf3 {[%clk 0:00:14]}
25... Bd5 {[%clk 0:00:40.5]} 26. Bh5 {[%clk 0:00:11]} 26... Bf7 {[%clk
0:00:34.4]} 27. Bxf7+ {[%clk 0:00:07.3]} 27... Kxf7 {[%clk 0:00:35.3]} 28. Rd7
{[%clk 0:00:09]} 28... Kf8 {[%clk 0:00:30.3]} 29. Ba3 {[%clk 0:00:09.8]} 29...
Qa6 {[%clk 0:00:14.5]} 30. Qc5 {[%clk 0:00:08.2]} 30... b6 {[%clk 0:00:11.1]}
31. Qd6 {[%clk 0:00:08.2]} 31... c5 {[%clk 0:00:10.2]} 32. Bb2 {[%clk
0:00:04.9]} 32... Qxa2 {[%clk 0:00:09.8]} 33. Qd2 {[%clk 0:00:06.5]} 33... Qxb3
{[%clk 0:00:10.5]} 34. Rxa7 {[%clk 0:00:07.4]} 34... Qe6 {[%clk 0:00:10.8]} 35.
Qc2 {[%clk 0:00:05.2]} 35... Kg8 {[%clk 0:00:10.4]} 36. Kg2 {[%clk 0:00:03.3]}
36... Nd5 {[%clk 0:00:09.7]} 37. Bc1 {[%clk 0:00:03.9]} 37... Nxe3+ {[%clk
0:00:08.6]} 38. Bxe3 {[%clk 0:00:04.7]} 38... Qxe3 {[%clk 0:00:10.2]} 39. Qc4+
{[%clk 0:00:06.4]} 39... Qe6 {[%clk 0:00:07.6]} 40. Qb5 {[%clk 0:00:05.1]} 40...
Qd5+ {[%clk 0:00:07.7]} 41. Kh3 {[%clk 0:00:04.9]} 41... Qh5+ {[%clk 0:00:08.3]}
42. Kg2 {[%clk 0:00:06]} 42... Qe2+ {[%clk 0:00:09.9]} 43. Qxe2 {[%clk
0:00:06.3]} 43... Rxe2+ {[%clk 0:00:10.7]} 44. Kh3 {[%clk 0:00:04.4]} 44... Rb2
{[%clk 0:00:10.9]} 45. Rc7 {[%clk 0:00:04]} 45... Rb4 {[%clk 0:00:10.7]} 46. Kg4
{[%clk 0:00:05.4]} 46... c4 {[%clk 0:00:12.2]} 47. Kf5 {[%clk 0:00:06.7]} 47...
Rb5+ {[%clk 0:00:12.5]} 48. Ke6 {[%clk 0:00:07.8]} 48... Rc5 {[%clk 0:00:12.6]}
49. Rb7 {[%clk 0:00:09.2]} 49... h6 {[%clk 0:00:10.9]} 50. Rb8+ {[%clk
0:00:08.2]} 50... Kh7 {[%clk 0:00:11.3]} 51. Rxb6 {[%clk 0:00:10.1]} 51... c3
{[%clk 0:00:12.9]} 52. Rb1 {[%clk 0:00:11.3]} 52... c2 {[%clk 0:00:14.4]} 53.
Rc1 {[%clk 0:00:13]} 53... Kg6 {[%clk 0:00:14.7]} 54. g4 {[%clk 0:00:11.8]}
54... h5 {[%clk 0:00:15.3]} 55. h3 {[%clk 0:00:13.2]} 55... hxg4 {[%clk
0:00:16.1]} 56. hxg4 {[%clk 0:00:15.1]} 56... Kh6 {[%clk 0:00:17.1]} 57. Rh1+
{[%clk 0:00:13.8]} 57... Kg6 {[%clk 0:00:16.6]} 58. Rc1 {[%clk 0:00:15.4]} 58...
Rc4 {[%clk 0:00:16.2]} 59. g5 {[%clk 0:00:03.3]} 59... fxg5 {[%clk 0:00:14.4]}
60. f5+ {[%clk 0:00:03.9]} 60... Kh5 {[%clk 0:00:14.8]} 61. Kf7 {[%clk
0:00:04.3]} 61... Rc7+ {[%clk 0:00:15.7]} 62. Ke6 {[%clk 0:00:03.6]} 62... g4
{[%clk 0:00:17.2]} 63. f6 {[%clk 0:00:03.3]} 63... gxf6 {[%clk 0:00:17.5]} 64.
Kxf6 {[%clk 0:00:03]} 64... g3 {[%clk 0:00:18.6]} 65. Kf5 {[%clk 0:00:04.6]}
65... g2 {[%clk 0:00:15.7]} 66. Kf4 {[%clk 0:00:05.2]} 66... Kh4 {[%clk
0:00:17]} 67. Kf3 {[%clk 0:00:05.5]} 67... Kh3 {[%clk 0:00:18.1]} 68. Kf2 {[%clk
0:00:06.7]} 68... Kh2 {[%clk 0:00:17.3]} 69. Rg1 {[%clk 0:00:06]} 69... Rf7+
{[%clk 0:00:18]} 70. Ke2 {[%clk 0:00:07]} 0-1

[Event "*** Titled Tuesday Blitz"]
[Site "Chess.com"]
[Date "2020.02.04"]
[Round "3"]
[White "czasnaszachy"]
[Black "M1711"]
[Result "1/2-1/2"]
[WhiteElo "2303"]
[BlackElo "2502"]
[TimeControl "180+2"]
[EndTime "13:41:31 PST"]
[Termination "Game drawn by repetition"]

1. d4 {[%clk 0:03:01.5]} 1... Nf6 {[%clk 0:02:50.8]} 2. c4 {[%clk 0:03:02.5]}
2... e6 {[%clk 0:02:47.8]} 3. Nc3 {[%clk 0:03:02.5]} 3... Bb4 {[%clk 0:02:48.1]}
4. e3 {[%clk 0:03:03.6]} 4... O-O {[%clk 0:02:48.7]} 5. Ne2 {[%clk 0:03:04.6]}
5... c6 {[%clk 0:02:48.9]} 6. a3 {[%clk 0:03:05.7]} 6... Ba5 {[%clk 0:02:49.6]}
7. b4 {[%clk 0:03:06.1]} 7... Bc7 {[%clk 0:02:50.8]} 8. Bb2 {[%clk 0:03:07.2]}
8... d5 {[%clk 0:02:47]} 9. Ng3 {[%clk 0:03:08.2]} 9... Nbd7 {[%clk 0:02:42.4]}
10. Be2 {[%clk 0:03:04.8]} 10... dxc4 {[%clk 0:02:39.7]} 11. Bxc4 {[%clk
0:03:05.1]} 11... e5 {[%clk 0:02:41.6]} 12. O-O {[%clk 0:03:04]} 12... exd4
{[%clk 0:02:40.4]} 13. Qxd4 {[%clk 0:03:03.1]} 13... Nb6 {[%clk 0:02:38]} 14.
Bb3 {[%clk 0:02:56.7]} 14... Qxd4 {[%clk 0:02:35.2]} 15. exd4 {[%clk 0:02:57.8]}
15... Bd7 {[%clk 0:02:18.9]} 16. Rad1 {[%clk 0:02:52.6]} 16... Rad8 {[%clk
0:02:19.1]} 17. d5 {[%clk 0:02:53.4]} 17... Nfxd5 {[%clk 0:02:14.1]} 18. Nxd5
{[%clk 0:02:54.3]} 18... Nxd5 {[%clk 0:02:14.8]} 19. Bxd5 {[%clk 0:02:53.7]}
19... cxd5 {[%clk 0:02:16.7]} 20. Rxd5 {[%clk 0:02:52.7]} 20... Be6 {[%clk
0:02:16.8]} 21. Rg5 {[%clk 0:02:37.2]} 21... f6 {[%clk 0:02:15.4]} 22. Rc5
{[%clk 0:02:37.5]} 22... Bb6 {[%clk 0:02:14.9]} 23. Rc2 {[%clk 0:02:36.8]} 23...
Bb3 {[%clk 0:02:00.9]} 24. Rc3 {[%clk 0:02:34.8]} 24... Ba4 {[%clk 0:02:01.7]}
25. Bc1 {[%clk 0:02:34.7]} 25... Rfe8 {[%clk 0:01:23.6]} 26. Be3 {[%clk
0:02:28.7]} 26... Bxe3 {[%clk 0:01:22.8]} 27. fxe3 {[%clk 0:02:29.3]} 27... Rd7
{[%clk 0:01:07.8]} 28. Rfc1 {[%clk 0:02:26.1]} 28... Bc6 {[%clk 0:01:04.6]} 29.
R1c2 {[%clk 0:02:13.2]} 29... Rd1+ {[%clk 0:00:54.1]} 30. Kf2 {[%clk 0:02:14]}
30... Red8 {[%clk 0:00:54.4]} 31. Nf5 {[%clk 0:01:41.2]} 31... R1d2+ {[%clk
0:00:51.9]} 32. Kg3 {[%clk 0:01:41.8]} 32... Rxc2 {[%clk 0:00:15.3]} 33. Rxc2
{[%clk 0:01:42.2]} 33... Be4 {[%clk 0:00:14.2]} 34. Rf2 {[%clk 0:01:32.8]} 34...
Rd3 {[%clk 0:00:11.9]} 35. Kf4 {[%clk 0:01:20]} 35... Bxf5 {[%clk 0:00:11.5]}
36. Kxf5 {[%clk 0:01:21.1]} 36... Rxa3 {[%clk 0:00:06.3]} 37. Rc2 {[%clk
0:01:19.2]} 37... Rxe3 {[%clk 0:00:06.9]} 38. Rc7 {[%clk 0:01:16.7]} 38... Re5+
{[%clk 0:00:07.5]} 39. Kf4 {[%clk 0:01:16.9]} 39... Rb5 {[%clk 0:00:09]} 40. Rc4
{[%clk 0:01:15.8]} 40... Kf7 {[%clk 0:00:09.7]} 41. h4 {[%clk 0:01:16.6]} 41...
h5 {[%clk 0:00:11.1]} 42. g3 {[%clk 0:01:16.9]} 42... Kg6 {[%clk 0:00:12.1]} 43.
Kf3 {[%clk 0:01:16.3]} 43... b6 {[%clk 0:00:12.3]} 44. Kf4 {[%clk 0:01:17.2]}
44... a5 {[%clk 0:00:13.8]} 45. bxa5 {[%clk 0:01:17.8]} 45... bxa5 {[%clk
0:00:15.7]} 46. Rc7 {[%clk 0:01:16.7]} 46... Rb4+ {[%clk 0:00:14.9]} 47. Kf3
{[%clk 0:01:17.8]} 47... a4 {[%clk 0:00:12.6]} 48. Ra7 {[%clk 0:01:18.7]} 48...
Rg4 {[%clk 0:00:13.6]} 49. Kf2 {[%clk 0:01:18.2]} 49... Kf5 {[%clk 0:00:13.9]}
50. Kf3 {[%clk 0:01:18.8]} 50... Ke5 {[%clk 0:00:14.2]} 51. Ra5+ {[%clk
0:01:19]} 51... Ke6 {[%clk 0:00:15]} 52. Rxh5 {[%clk 0:01:19.9]} 52... Rb4
{[%clk 0:00:11.4]} 53. Ra5 {[%clk 0:01:20.7]} 53... Kd6 {[%clk 0:00:12.3]} 54.
Ra7 {[%clk 0:01:17.9]} 54... g6 {[%clk 0:00:05.4]} 55. Ra6+ {[%clk 0:01:18.5]}
55... Ke5 {[%clk 0:00:06.5]} 56. g4 {[%clk 0:01:10.1]} 56... Rb3+ {[%clk
0:00:07.3]} 57. Kf2 {[%clk 0:01:10.2]} 57... a3 {[%clk 0:00:07.9]} 58. h5 {[%clk
0:01:10.5]} 58... gxh5 {[%clk 0:00:09.1]} 59. gxh5 {[%clk 0:01:11.6]} 59... Kf5
{[%clk 0:00:08.4]} 60. h6 {[%clk 0:01:11.1]} 60... Kg6 {[%clk 0:00:08.8]} 61. h7
{[%clk 0:01:10.6]} 61... Rh3 {[%clk 0:00:04.2]} 62. Rxa3 {[%clk 0:01:03.3]}
62... Rxh7 {[%clk 0:00:05.4]} 63. Ra5 {[%clk 0:01:03.4]} 63... Rh3 {[%clk
0:00:05.4]} 64. Kg2 {[%clk 0:01:04]} 64... Rc3 {[%clk 0:00:06.6]} 65. Rb5 {[%clk
0:01:03.5]} 65... f5 {[%clk 0:00:07.5]} 66. Rb4 {[%clk 0:01:00.8]} 66... Kg5
{[%clk 0:00:08.6]} 67. Ra4 {[%clk 0:01:01.2]} 67... Rb3 {[%clk 0:00:08.7]} 68.
Rc4 {[%clk 0:01:01.7]} 68... Re3 {[%clk 0:00:09.3]} 69. Ra4 {[%clk 0:01:02.5]}
69... Rc3 {[%clk 0:00:10.1]} 70. Rb4 {[%clk 0:01:03.3]} 70... Re3 {[%clk
0:00:06.4]} 71. Ra4 {[%clk 0:01:04.1]} 71... Kf6 {[%clk 0:00:06]} 72. Rf4 {[%clk
0:00:59.7]} 72... Ke5 {[%clk 0:00:05.8]} 73. Ra4 {[%clk 0:01:00.5]} 73... Re4
{[%clk 0:00:05.4]} 74. Ra3 {[%clk 0:01:00.4]} 74... Kf4 {[%clk 0:00:04]} 75.
Rf3+ {[%clk 0:01:00.5]} 75... Kg5 {[%clk 0:00:05.4]} 76. Ra3 {[%clk 0:01:01.1]}
76... Rg4+ {[%clk 0:00:06]} 77. Kf2 {[%clk 0:01:01.6]} 77... Rf4+ {[%clk
0:00:06.7]} 78. Kg2 {[%clk 0:01:02.4]} 78... Rg4+ {[%clk 0:00:07.9]} 79. Kf2
{[%clk 0:01:03.4]} 79... Rb4 {[%clk 0:00:08.8]} 80. Rc3 {[%clk 0:01:03.1]} 80...
Ra4 {[%clk 0:00:09.8]} 81. Rb3 {[%clk 0:01:03.9]} 81... Kg4 {[%clk 0:00:10.7]}
82. Rc3 {[%clk 0:01:03.5]} 82... Ra2+ {[%clk 0:00:11.1]} 83. Kf1 {[%clk
0:01:04.5]} 83... Rd2 {[%clk 0:00:10.2]} 84. Rb3 {[%clk 0:01:05.3]} 84... Rd4
{[%clk 0:00:11.4]} 85. Ra3 {[%clk 0:01:06]} 85... Kg5 {[%clk 0:00:11.9]} 86. Kf2
{[%clk 0:01:06.5]} 86... Rf4+ {[%clk 0:00:12.9]} 87. Kg2 {[%clk 0:01:07.3]}
87... Rg4+ {[%clk 0:00:13.7]} 1/2-1/2

[Event "*** Titled Tuesday Blitz"]
[Site "Chess.com"]
[Date "2020.02.04"]
[Round "3"]
[White "Perecke"]
[Black "TheRigos"]
[Result "1/2-1/2"]
[WhiteElo "2282"]
[BlackElo "2554"]
[TimeControl "180+2"]
[EndTime "13:42:12 PST"]
[Termination "Game drawn by agreement"]

1. e4 {[%clk 0:03:01.9]} 1... c5 {[%clk 0:03:00.3]} 2. Nf3 {[%clk 0:03:02.9]}
2... d6 {[%clk 0:03:01.4]} 3. d4 {[%clk 0:03:03.8]} 3... cxd4 {[%clk 0:03:03]}
4. Nxd4 {[%clk 0:03:05.7]} 4... Nf6 {[%clk 0:03:04.2]} 5. Nc3 {[%clk 0:03:07.1]}
5... a6 {[%clk 0:03:05.8]} 6. h3 {[%clk 0:03:07.9]} 6... e6 {[%clk 0:03:06.4]}
7. g4 {[%clk 0:03:09.1]} 7... b5 {[%clk 0:03:05.9]} 8. Bg2 {[%clk 0:03:10.1]}
8... Bb7 {[%clk 0:03:07.5]} 9. O-O {[%clk 0:03:11.3]} 9... Nfd7 {[%clk 0:03:07]}
10. Be3 {[%clk 0:03:05.7]} 10... Be7 {[%clk 0:03:07.2]} 11. f4 {[%clk
0:03:06.4]} 11... Nc6 {[%clk 0:03:04.4]} 12. f5 {[%clk 0:02:57.1]} 12... Nxd4
{[%clk 0:02:49]} 13. Bxd4 {[%clk 0:02:59]} 13... Ne5 {[%clk 0:02:49.6]} 14. fxe6
{[%clk 0:02:53.4]} 14... fxe6 {[%clk 0:02:49.6]} 15. Bxe5 {[%clk 0:02:54.1]}
15... dxe5 {[%clk 0:02:49.1]} 16. Qf3 {[%clk 0:02:48]} 16... Rf8 {[%clk
0:02:32.9]} 17. Qg3 {[%clk 0:02:46.3]} 17... Qb6+ {[%clk 0:02:33]} 18. Kh1
{[%clk 0:02:43.2]} 18... b4 {[%clk 0:02:23.8]} 19. Ne2 {[%clk 0:02:41.2]} 19...
Qb5 {[%clk 0:02:24.4]} 20. Rxf8+ {[%clk 0:02:31.2]} 20... Bxf8 {[%clk
0:02:25.6]} 21. Nc1 {[%clk 0:02:18.4]} 21... Bc5 {[%clk 0:02:14.4]} 22. Qxe5
{[%clk 0:02:09.7]} 22... O-O-O {[%clk 0:01:59.7]} 23. Nd3 {[%clk 0:01:58.2]}
23... Bd4 {[%clk 0:01:53.4]} 24. Qxb5 {[%clk 0:01:35.7]} 24... axb5 {[%clk
0:01:54.5]} 25. Rb1 {[%clk 0:01:36.8]} 25... Be3 {[%clk 0:01:47.4]} 26. Bf3
{[%clk 0:00:55.5]} 26... Rd4 {[%clk 0:01:44.5]} 27. Re1 {[%clk 0:00:51.1]} 27...
Bd2 {[%clk 0:01:44.2]} 28. Re2 {[%clk 0:00:51.2]} 28... Bg5 {[%clk 0:01:39.6]}
29. Kg2 {[%clk 0:00:50.6]} 29... Bh4 {[%clk 0:01:30.7]} 30. e5 {[%clk
0:00:45.1]} 30... Bd5 {[%clk 0:01:02.8]} 31. Bxd5 {[%clk 0:00:35.3]} 31... exd5
{[%clk 0:01:03.7]} 32. b3 {[%clk 0:00:20.9]} 32... Be7 {[%clk 0:00:57.7]} 33.
Kf3 {[%clk 0:00:21.2]} 33... Kc7 {[%clk 0:00:55]} 34. Ke3 {[%clk 0:00:08.2]}
34... Re4+ {[%clk 0:00:55.9]} 35. Kf3 {[%clk 0:00:09.5]} 35... Rd4 {[%clk
0:00:57.2]} 36. Nf4 {[%clk 0:00:06.3]} 36... Kd7 {[%clk 0:00:53]} 37. Nd3 {[%clk
0:00:04.4]} 37... Kc6 {[%clk 0:00:47.5]} 38. Ke3 {[%clk 0:00:04.6]} 38... Re4+
{[%clk 0:00:48.7]} 39. Kd2 {[%clk 0:00:05.3]} 39... Bg5+ {[%clk 0:00:49.8]} 40.
Kd1 {[%clk 0:00:05.5]} 40... Rd4 {[%clk 0:00:51.2]} 41. Rf2 {[%clk 0:00:04.5]}
41... h5 {[%clk 0:00:40.1]} 42. gxh5 {[%clk 0:00:03.1]} 42... Rh4 {[%clk
0:00:35]} 43. Rf7 {[%clk 0:00:03.6]} 43... Bh6 {[%clk 0:00:35.7]} 44. Nxb4+
{[%clk 0:00:04.2]} 44... Rxb4 {[%clk 0:00:35.9]} 45. e6 {[%clk 0:00:03.9]} 45...
Re4 {[%clk 0:00:37.1]} 46. e7 {[%clk 0:00:03.6]} 46... Kd7 {[%clk 0:00:38.6]}
47. e8=Q+ {[%clk 0:00:04.4]} 47... Kxe8 {[%clk 0:00:40.1]} 48. Rb7 {[%clk
0:00:05.7]} 48... b4 {[%clk 0:00:35.5]} 49. Rb5 {[%clk 0:00:06.5]} 49... Rd4+
{[%clk 0:00:33.3]} 50. Ke1 {[%clk 0:00:05.9]} 50... Ke7 {[%clk 0:00:34.8]} 51.
Rb6 {[%clk 0:00:05.9]} 51... Rh4 {[%clk 0:00:30.8]} 52. Ke2 {[%clk 0:00:03.8]}
52... Rxh3 {[%clk 0:00:19.8]} 53. Rxb4 {[%clk 0:00:04.5]} 53... Rxh5 {[%clk
0:00:21.4]} 54. a4 {[%clk 0:00:05.2]} 54... Rh2+ {[%clk 0:00:22.5]} 55. Kd3
{[%clk 0:00:06.3]} 55... Kd6 {[%clk 0:00:22.4]} 56. a5 {[%clk 0:00:06.3]} 56...
Rh3+ {[%clk 0:00:23.2]} 57. Ke2 {[%clk 0:00:05.5]} 57... Rh2+ {[%clk 0:00:24.4]}
58. Kd3 {[%clk 0:00:06.1]} 58... Rd2+ {[%clk 0:00:25.1]} 59. Kc3 {[%clk
0:00:07.2]} 59... Rd1 {[%clk 0:00:27]} 60. Rb6+ {[%clk 0:00:07.9]} 60... Ke5
{[%clk 0:00:26.9]} 61. a6 {[%clk 0:00:07.5]} 61... Be3 {[%clk 0:00:25.6]} 62.
Rb7 {[%clk 0:00:03.3]} 62... Ra1 {[%clk 0:00:26.3]} 63. Rxg7 {[%clk 0:00:03.4]}
63... Bd4+ {[%clk 0:00:26.1]} 64. Kd3 {[%clk 0:00:04.1]} 64... Rxa6 {[%clk
0:00:22.3]} 65. Rg5+ {[%clk 0:00:04.9]} 65... Kf4 {[%clk 0:00:20.1]} 66. Rxd5
{[%clk 0:00:05.8]} 66... Bf2 {[%clk 0:00:21.5]} 67. c4 {[%clk 0:00:05.7]} 67...
Rb6 {[%clk 0:00:21.9]} 68. Kc2 {[%clk 0:00:05.8]} 68... Ke4 {[%clk 0:00:23.3]}
69. Rd7 {[%clk 0:00:06.4]} 69... Bd4 {[%clk 0:00:24.6]} 70. Re7+ {[%clk
0:00:06.2]} 70... Be5 {[%clk 0:00:25.4]} 71. Rd7 {[%clk 0:00:07.1]} 71... Ra6
{[%clk 0:00:26.5]} 72. b4 {[%clk 0:00:07]} 72... Rh6 {[%clk 0:00:25.8]} 73. Kb3
{[%clk 0:00:06.8]} 73... Rh1 {[%clk 0:00:23.8]} 74. b5 {[%clk 0:00:07.5]} 74...
Rb1+ {[%clk 0:00:25.3]} 75. Ka4 {[%clk 0:00:07.9]} 75... Bc3 {[%clk 0:00:23.4]}
76. Rd5 {[%clk 0:00:02.9]} 76... Rb4+ {[%clk 0:00:24.1]} 77. Ka3 {[%clk
0:00:03.7]} 77... Rxc4 {[%clk 0:00:24.9]} 78. Rd8 {[%clk 0:00:03.9]} 78... Bd4
{[%clk 0:00:25.8]} 79. Kb3 {[%clk 0:00:04.3]} 79... Rc1 {[%clk 0:00:25.8]} 80.
b6 {[%clk 0:00:04.4]} 80... Rb1+ {[%clk 0:00:26.6]} 81. Kc4 {[%clk 0:00:05.7]}
81... Rxb6 {[%clk 0:00:28.5]} 82. Rxd4+ {[%clk 0:00:06.1]} 82... Ke5 {[%clk
0:00:29.8]} 83. Rd5+ {[%clk 0:00:07]} 83... Ke6 {[%clk 0:00:31.7]} 84. Rd1
{[%clk 0:00:07.6]} 84... Rc6+ {[%clk 0:00:33]} 85. Kb5 {[%clk 0:00:09]} 1/2-1/2

[Event "*** Titled Tuesday Blitz"]
[Site "Chess.com"]
[Date "2020.02.04"]
[Round "4"]
[White "KRASAVCHIK2002"]
[Black "mishanick"]
[Result "0-1"]
[WhiteElo "2522"]
[BlackElo "2999"]
[TimeControl "180+2"]
[EndTime "13:43:27 PST"]
[Termination "mishanick won by resignation"]

1. e4 {[%clk 0:03:01.9]} 1... c5 {[%clk 0:03:00.4]} 2. Nf3 {[%clk 0:03:00.5]}
2... d6 {[%clk 0:03:00.6]} 3. d4 {[%clk 0:03:01.8]} 3... cxd4 {[%clk 0:02:59.7]}
4. Nxd4 {[%clk 0:03:03.7]} 4... Nf6 {[%clk 0:03:01.4]} 5. Nc3 {[%clk 0:03:05.2]}
5... a6 {[%clk 0:03:03]} 6. f3 {[%clk 0:03:06.1]} 6... e5 {[%clk 0:03:04.2]} 7.
Nb3 {[%clk 0:03:06.7]} 7... Be6 {[%clk 0:03:05.5]} 8. Be3 {[%clk 0:03:07.7]}
8... Nbd7 {[%clk 0:03:06.7]} 9. Qd2 {[%clk 0:03:08.7]} 9... b5 {[%clk
0:03:07.9]} 10. O-O-O {[%clk 0:03:01.4]} 10... Be7 {[%clk 0:03:09.2]} 11. g4
{[%clk 0:02:59]} 11... b4 {[%clk 0:03:07.3]} 0-1

[Event "*** Titled Tuesday Blitz"]
[Site "Chess.com"]
[Date "2020.02.04"]
[Round "4"]
[White "Alopekos"]
[Black "Gentlejimmy7"]
[Result "1-0"]
[WhiteElo "2485"]
[BlackElo "2644"]
[TimeControl "180+2"]
[EndTime "13:44:12 PST"]
[Termination "Alopekos won by resignation"]

1. e4 {[%clk 0:03:01.9]} 1... c5 {[%clk 0:03:00.6]} 2. Nc3 {[%clk 0:03:02.3]}
2... Nc6 {[%clk 0:03:00.7]} 3. Nge2 {[%clk 0:03:02.7]} 3... g6 {[%clk
0:02:57.8]} 4. d4 {[%clk 0:03:03.2]} 4... cxd4 {[%clk 0:02:59.7]} 5. Nxd4 {[%clk
0:03:05.1]} 5... Bg7 {[%clk 0:03:01.2]} 6. Nxc6 {[%clk 0:03:06.1]} 6... bxc6
{[%clk 0:03:01.3]} 7. Bc4 {[%clk 0:03:03.9]} 7... e6 {[%clk 0:03:01.5]} 8. O-O
{[%clk 0:03:04.5]} 8... d5 {[%clk 0:03:02]} 9. exd5 {[%clk 0:03:06.3]} 9... cxd5
{[%clk 0:03:03.9]} 10. Nxd5 {[%clk 0:03:07.5]} 10... exd5 {[%clk 0:02:52.1]} 11.
Bxd5 {[%clk 0:03:08.6]} 11... Be6 {[%clk 0:02:47.2]} 12. Bc6+ {[%clk 0:03:09.2]}
12... Kf8 {[%clk 0:02:47.4]} 13. Bxa8 {[%clk 0:03:10.2]} 13... Qxa8 {[%clk
0:02:49.3]} 14. Qd6+ {[%clk 0:03:11.5]} 14... Ne7 {[%clk 0:02:45.7]} 15. Bg5
{[%clk 0:03:12.3]} 15... Qe8 {[%clk 0:02:41]} 16. Rad1 {[%clk 0:03:11.5]} 16...
h6 {[%clk 0:02:42.2]} 17. Bxe7+ {[%clk 0:03:12.1]} 17... Qxe7 {[%clk 0:02:39.7]}
18. Qb8+ {[%clk 0:03:12.5]} 1-0

[Event "*** Titled Tuesday Blitz"]
[Site "Chess.com"]
[Date "2020.02.04"]
[Round "4"]
[White "WeAintSurePal"]
[Black "PaulfromSPb"]
[Result "0-1"]
[WhiteElo "2389"]
[BlackElo "2627"]
[TimeControl "180+2"]
[EndTime "13:46:28 PST"]
[Termination "PaulfromSPb won by resignation"]

1. d4 {[%clk 0:03:01.9]} 1... Nf6 {[%clk 0:02:07.3]} 2. c4 {[%clk 0:02:56.9]}
2... e6 {[%clk 0:02:08]} 3. g3 {[%clk 0:02:57.6]} 3... c5 {[%clk 0:02:08.7]} 4.
Nf3 {[%clk 0:02:57.9]} 4... cxd4 {[%clk 0:02:09.2]} 5. Nxd4 {[%clk 0:02:59.8]}
5... d5 {[%clk 0:02:10.7]} 6. Bg2 {[%clk 0:02:59.3]} 6... e5 {[%clk 0:02:11.9]}
7. Nb5 {[%clk 0:02:53]} 7... d4 {[%clk 0:02:12]} 8. O-O {[%clk 0:02:51.1]} 8...
a6 {[%clk 0:02:12.8]} 9. N5a3 {[%clk 0:02:52.2]} 9... Nc6 {[%clk 0:02:13.3]} 10.
e3 {[%clk 0:02:46.7]} 10... Bc5 {[%clk 0:02:13.3]} 11. exd4 {[%clk 0:02:45.6]}
11... exd4 {[%clk 0:02:15.2]} 12. Re1+ {[%clk 0:02:44.9]} 12... Be6 {[%clk
0:02:16.2]} 13. Bg5 {[%clk 0:02:43.4]} 13... O-O {[%clk 0:02:14.6]} 14. Nd2
{[%clk 0:02:44.8]} 14... h6 {[%clk 0:02:09.9]} 15. Bxf6 {[%clk 0:02:45.3]} 15...
Qxf6 {[%clk 0:02:09]} 16. Ne4 {[%clk 0:02:46.8]} 16... Qe7 {[%clk 0:02:09.6]}
17. Nxc5 {[%clk 0:02:48]} 17... Qxc5 {[%clk 0:02:09.2]} 18. Rc1 {[%clk
0:02:49.5]} 18... Rad8 {[%clk 0:02:03.9]} 19. Nb1 {[%clk 0:02:49.8]} 19... d3
{[%clk 0:02:03.1]} 20. Nd2 {[%clk 0:02:49.4]} 20... Nd4 {[%clk 0:02:02.6]} 21.
Nb3 {[%clk 0:02:47.4]} 21... Ne2+ {[%clk 0:02:01]} 22. Kf1 {[%clk 0:02:44.4]}
22... Qb4 {[%clk 0:01:46.2]} 23. Rxe2 {[%clk 0:02:43.2]} 23... dxe2+ {[%clk
0:01:43.3]} 24. Qxe2 {[%clk 0:02:45.1]} 24... Rfe8 {[%clk 0:01:44.4]} 25. Qc2
{[%clk 0:02:43.9]} 25... Bxc4+ {[%clk 0:01:40.2]} 26. Kg1 {[%clk 0:02:42.5]}
26... Re1+ {[%clk 0:01:30.6]} 0-1

[Event "*** Titled Tuesday Blitz"]
[Site "Chess.com"]
[Date "2020.02.04"]
[Round "4"]
[White "vovachesss"]
[Black "TigrVShlyape"]
[Result "0-1"]
[WhiteElo "2565"]
[BlackElo "2831"]
[TimeControl "180+2"]
[EndTime "13:46:39 PST"]
[Termination "TigrVShlyape won by resignation"]

1. e4 {[%clk 0:03:01.9]} 1... c5 {[%clk 0:03:00.1]} 2. d4 {[%clk 0:02:59.2]}
2... cxd4 {[%clk 0:03:00.7]} 3. c3 {[%clk 0:03:00.9]} 3... Nf6 {[%clk
0:03:01.3]} 4. e5 {[%clk 0:03:02.2]} 4... Nd5 {[%clk 0:03:02]} 5. Nf3 {[%clk
0:03:04]} 5... Nc6 {[%clk 0:03:02.5]} 6. Bc4 {[%clk 0:03:05.4]} 6... Nb6 {[%clk
0:03:03.4]} 7. Bb3 {[%clk 0:03:06.8]} 7... d5 {[%clk 0:03:04.1]} 8. exd6 {[%clk
0:03:08.7]} 8... Qxd6 {[%clk 0:03:04.9]} 9. O-O {[%clk 0:03:10.6]} 9... Be6
{[%clk 0:03:05.6]} 10. Qe2 {[%clk 0:03:08]} 10... d3 {[%clk 0:02:57.7]} 11. Qe4
{[%clk 0:03:06.7]} 11... Bxb3 {[%clk 0:02:50.2]} 12. axb3 {[%clk 0:03:08.6]}
12... e6 {[%clk 0:02:50.8]} 13. Rd1 {[%clk 0:03:09.1]} 13... Rd8 {[%clk
0:02:50.1]} 14. Qg4 {[%clk 0:03:00.7]} 14... h5 {[%clk 0:02:48.9]} 15. Qg5
{[%clk 0:02:58.2]} 15... Qd5 {[%clk 0:02:45.1]} 16. Qg3 {[%clk 0:02:45.3]} 16...
Qxb3 {[%clk 0:02:33.5]} 17. Nbd2 {[%clk 0:02:29.6]} 17... Qxd1+ {[%clk
0:02:33.5]} 18. Nf1 {[%clk 0:02:28.4]} 18... d2 {[%clk 0:02:29.6]} 19. Nxd2
{[%clk 0:02:28.5]} 19... h4 {[%clk 0:02:29]} 20. Qe3 {[%clk 0:02:24.6]} 20... h3
{[%clk 0:02:28.2]} 21. gxh3 {[%clk 0:02:24.2]} 21... Qh5 {[%clk 0:02:25.8]} 22.
Nf3 {[%clk 0:02:19.8]} 22... Qxh3 {[%clk 0:02:25.4]} 23. Bd2 {[%clk 0:02:17.6]}
23... Nd5 {[%clk 0:02:24]} 24. Qe4 {[%clk 0:02:17.9]} 24... Bc5 {[%clk
0:02:22.2]} 25. Ng3 {[%clk 0:02:14.2]} 25... Nf6 {[%clk 0:02:20]} 26. Qc4 {[%clk
0:02:10.1]} 26... Bb6 {[%clk 0:02:19.5]} 27. Be3 {[%clk 0:02:04]} 27... Bxe3
{[%clk 0:02:17.7]} 28. fxe3 {[%clk 0:02:05.9]} 28... Ng4 {[%clk 0:02:09.1]} 0-1